[Event "*** Biggest EVER Titled Tuesday"]
[Site "Chess.com"]
[Date "2018.04.17"]
[Round "6"]
[White "Sanan_Sjugirov"]
[Black "JustKid"]
[Result "1-0"]
[WhiteElo "2835"]
[BlackElo "2475"]
[TimeControl "180+2"]
[EndTime "14:22:54 PDT"]
[Termination "Sanan_Sjugirov won by resignation"]

1. e4 {[%clk 0:03:01.9]} 1... c5 {[%clk 0:02:59.5]} 2. Nf3 {[%clk 0:03:02.3]}
2... g6 {[%clk 0:03:00.6]} 3. d4 {[%clk 0:02:58.2]} 3... cxd4 {[%clk 0:03:02.5]}
4. Nxd4 {[%clk 0:02:59.6]} 4... Nc6 {[%clk 0:03:03.9]} 5. c4 {[%clk 0:03:00.1]}
5... Nf6 {[%clk 0:03:03.3]} 6. Nc3 {[%clk 0:03:00.9]} 6... Nxd4 {[%clk
0:03:04.8]} 7. Qxd4 {[%clk 0:03:01.6]} 7... d6 {[%clk 0:03:06.7]} 8. Be2 {[%clk
0:03:02]} 8... Bg7 {[%clk 0:03:08]} 9. Be3 {[%clk 0:03:02.2]} 9... O-O {[%clk
0:03:09]} 10. Qd2 {[%clk 0:03:02.5]} 10... a5 {[%clk 0:03:10]} 11. O-O {[%clk
0:02:52.9]} 11... a4 {[%clk 0:03:09.6]} 12. Rad1 {[%clk 0:02:44.2]} 12... Qa5
{[%clk 0:03:03.7]} 13. Bd4 {[%clk 0:02:42.3]} 13... Bd7 {[%clk 0:02:56.2]} 14.
Bxf6 {[%clk 0:02:29.2]} 14... Bxf6 {[%clk 0:02:42.4]} 15. Nd5 {[%clk 0:02:30]}
15... Kg7 {[%clk 0:01:44.8]} 16. Nxf6 {[%clk 0:02:29.7]} 16... Qxd2 {[%clk
0:01:37.5]} 17. Nh5+ {[%clk 0:02:29.7]} 17... gxh5 {[%clk 0:01:39.4]} 18. Rxd2
{[%clk 0:02:30.6]} 18... Ra5 {[%clk 0:01:40.6]} 19. Rfd1 {[%clk 0:02:25.9]}
19... Be6 {[%clk 0:01:37.7]} 20. h4 {[%clk 0:02:06.7]} 20... Rc8 {[%clk
0:01:35.9]} 21. Rd4 {[%clk 0:02:04.7]} 21... Rac5 {[%clk 0:01:24.4]} 22. b3
{[%clk 0:02:00.9]} 22... axb3 {[%clk 0:01:20.7]} 23. axb3 {[%clk 0:02:02.8]}
23... Bg4 {[%clk 0:01:15.8]} 24. f3 {[%clk 0:02:03]} 24... Be6 {[%clk
0:01:12.8]} 25. Ra1 {[%clk 0:01:59.4]} 25... R5c6 {[%clk 0:00:49.9]} 26. Rd2
{[%clk 0:01:45.8]} 26... Rb6 {[%clk 0:00:49.3]} 27. Bd1 {[%clk 0:01:39.8]} 27...
Rb4 {[%clk 0:00:43.7]} 28. Ra7 {[%clk 0:01:18.9]} 28... Kf6 {[%clk 0:00:44.4]}
29. Kf2 {[%clk 0:01:03]} 29... b5 {[%clk 0:00:42.8]} 30. Rb7 {[%clk 0:01:01.6]}
30... Rc5 {[%clk 0:00:38]} 31. Ra2 {[%clk 0:00:57.9]} 31... Ke5 {[%clk 0:00:28]}
32. Ke3 {[%clk 0:00:54.7]} 32... f5 {[%clk 0:00:25.1]} 33. f4+ {[%clk 0:00:54]}
33... Kf6 {[%clk 0:00:26.5]} 34. exf5 {[%clk 0:00:47.1]} 34... Bxf5 {[%clk
0:00:28.4]} 35. Kd4 {[%clk 0:00:38.2]} 35... Bg4 {[%clk 0:00:27.4]} 36. Bc2
{[%clk 0:00:31.4]} 36... Bf5 {[%clk 0:00:24.5]} 37. Kc3 {[%clk 0:00:28.6]} 37...
bxc4 {[%clk 0:00:19.8]} 38. Kxb4 {[%clk 0:00:26.4]} 1-0

[Event "*** Biggest EVER Titled Tuesday"]
[Site "Chess.com"]
[Date "2018.04.17"]
[Round "6"]
[White "WarlordX"]
[Black "Triumphmate"]
[Result "1-0"]
[WhiteElo "2290"]
[BlackElo "2164"]
[TimeControl "180+2"]
[EndTime "14:22:56 PDT"]
[Termination "WarlordX won by resignation"]

1. e4 {[%clk 0:03:01.9]} 1... d5 {[%clk 0:03:00.4]} 2. exd5 {[%clk 0:03:01.8]}
2... Nf6 {[%clk 0:03:01.9]} 3. d4 {[%clk 0:03:02.7]} 3... Bg4 {[%clk 0:03:01.1]}
4. Qd3 {[%clk 0:03:00.1]} 4... Qxd5 {[%clk 0:02:59.8]} 5. h3 {[%clk 0:03:00.2]}
5... Bf5 {[%clk 0:02:59.7]} 6. Qe3 {[%clk 0:03:01.5]} 6... Nc6 {[%clk
0:03:00.4]} 7. c3 {[%clk 0:03:02.2]} 7... O-O-O {[%clk 0:03:00.3]} 8. Nf3 {[%clk
0:03:03.2]} 8... e5 {[%clk 0:03:01.9]} 9. c4 {[%clk 0:02:52.3]} 9... Bb4+ {[%clk
0:02:48]} 10. Nc3 {[%clk 0:02:44.5]} 10... Qd6 {[%clk 0:02:02.9]} 11. d5 {[%clk
0:02:39.1]} 11... Bc5 {[%clk 0:01:59.2]} 12. Qg5 {[%clk 0:02:32.5]} 12... Ne7
{[%clk 0:01:56]} 13. Qxg7 {[%clk 0:02:17.6]} 13... e4 {[%clk 0:01:50.5]} 14. Ng5
{[%clk 0:01:57.1]} 14... Bg6 {[%clk 0:01:49.8]} 15. Nxf7 {[%clk 0:01:51.5]}
15... Bxf7 {[%clk 0:01:50.2]} 16. Qxf7 {[%clk 0:01:53.3]} 16... Rhf8 {[%clk
0:01:49.2]} 17. Qe6+ {[%clk 0:01:36.7]} 17... Qxe6 {[%clk 0:01:36]} 18. dxe6
{[%clk 0:01:38.6]} 18... Nf5 {[%clk 0:01:37]} 19. Be2 {[%clk 0:01:32.1]} 19...
Nd4 {[%clk 0:01:38]} 20. Bd1 {[%clk 0:01:32.8]} 20... Nxe6 {[%clk 0:01:38]} 21.
O-O {[%clk 0:01:30]} 21... c6 {[%clk 0:01:25.7]} 22. Na4 {[%clk 0:01:17.4]}
22... Bd4 {[%clk 0:01:25.4]} 23. Be3 {[%clk 0:01:13.1]} 23... Rd7 {[%clk
0:01:19.6]} 24. Bb3 {[%clk 0:00:38.2]} 24... Rfd8 {[%clk 0:01:17.2]} 25. Rad1
{[%clk 0:00:37.8]} 25... c5 {[%clk 0:01:11.2]} 26. Nc3 {[%clk 0:00:35.6]} 26...
Bxc3 {[%clk 0:01:10.6]} 27. bxc3 {[%clk 0:00:36.1]} 27... Rd3 {[%clk 0:01:09.9]}
28. Rxd3 {[%clk 0:00:34.7]} 28... Rxd3 {[%clk 0:01:11.8]} 29. Rc1 {[%clk
0:00:35.2]} 29... b6 {[%clk 0:01:10.8]} 30. Kf1 {[%clk 0:00:36.5]} 30... Nd7
{[%clk 0:01:10.2]} 31. Ke2 {[%clk 0:00:36.4]} 31... Ne5 {[%clk 0:01:11.4]} 32.
Bd2 {[%clk 0:00:30.3]} 32... Kc7 {[%clk 0:01:09.3]} 33. Bc2 {[%clk 0:00:31.5]}
33... Rd8 {[%clk 0:01:02.2]} 34. Bxe4 {[%clk 0:00:31]} 34... Nxc4 {[%clk
0:01:03.7]} 35. Bh6 {[%clk 0:00:26.7]} 35... Re8 {[%clk 0:00:59.1]} 36. f3
{[%clk 0:00:23.2]} 36... b5 {[%clk 0:00:55.1]} 37. Kf2 {[%clk 0:00:23.8]} 37...
Ne5 {[%clk 0:00:53.2]} 38. Rd1 {[%clk 0:00:20.9]} 38... c4 {[%clk 0:00:51.8]}
39. Bxh7 {[%clk 0:00:20.4]} 39... Rh8 {[%clk 0:00:50.9]} 40. Bg7 {[%clk
0:00:19.9]} 40... Rxh7 {[%clk 0:00:47.5]} 41. Bxe5+ {[%clk 0:00:20.8]} 41... Kb7
{[%clk 0:00:47.2]} 42. Rd5 {[%clk 0:00:21.4]} 42... Nc5 {[%clk 0:00:48.6]} 43.
Rxc5 {[%clk 0:00:22.4]} 1-0

[Event "*** Biggest EVER Titled Tuesday"]
[Site "Chess.com"]
[Date "2018.04.17"]
[Round "6"]
[White "martinique24"]
[Black "lukas_111111"]
[Result "0-1"]
[WhiteElo "2310"]
[BlackElo "2498"]
[TimeControl "180+2"]
[EndTime "14:22:56 PDT"]
[Termination "lukas_111111 won by checkmate"]

1. e4 {[%clk 0:03:01.9]} 1... e5 {[%clk 0:02:57.5]} 2. Nf3 {[%clk 0:03:02.7]}
2... Nc6 {[%clk 0:02:57.9]} 3. Bb5 {[%clk 0:02:55.5]} 3... Nf6 {[%clk
0:02:58.1]} 4. d3 {[%clk 0:02:50.8]} 4... Bc5 {[%clk 0:02:58.5]} 5. c3 {[%clk
0:02:49.5]} 5... d5 {[%clk 0:02:49]} 6. exd5 {[%clk 0:02:41.4]} 6... Qxd5 {[%clk
0:02:48.8]} 7. Bc4 {[%clk 0:02:40.2]} 7... Qd6 {[%clk 0:02:49.7]} 8. O-O {[%clk
0:02:40.6]} 8... e4 {[%clk 0:02:47.2]} 9. dxe4 {[%clk 0:02:32.9]} 9... Qxd1
{[%clk 0:02:45.5]} 10. Rxd1 {[%clk 0:02:33.7]} 10... Nxe4 {[%clk 0:02:47.1]} 11.
Rf1 {[%clk 0:02:22.3]} 11... O-O {[%clk 0:02:47.6]} 12. Nbd2 {[%clk 0:02:23]}
12... Bf5 {[%clk 0:02:37.5]} 13. Nxe4 {[%clk 0:02:21.7]} 13... Bxe4 {[%clk
0:02:38.1]} 14. Ng5 {[%clk 0:02:22.6]} 14... Bg6 {[%clk 0:02:38.2]} 15. Bf4
{[%clk 0:02:23.1]} 15... Bb6 {[%clk 0:02:27]} 16. Rfe1 {[%clk 0:02:23.3]} 16...
Rfe8 {[%clk 0:02:21.1]} 17. b4 {[%clk 0:02:03.4]} 17... a6 {[%clk 0:02:00.7]}
18. h3 {[%clk 0:01:47.3]} 18... h6 {[%clk 0:01:56.1]} 19. Nf3 {[%clk 0:01:47.3]}
19... Be4 {[%clk 0:01:47.7]} 20. Nd2 {[%clk 0:01:46.5]} 20... Bf5 {[%clk
0:01:48.2]} 21. a4 {[%clk 0:01:45]} 21... g5 {[%clk 0:01:43.6]} 22. Bg3 {[%clk
0:01:37.6]} 22... Rxe1+ {[%clk 0:01:21.8]} 23. Rxe1 {[%clk 0:01:37.7]} 23... Rd8
{[%clk 0:01:23.3]} 24. Nf3 {[%clk 0:01:26.1]} 24... a5 {[%clk 0:01:13.5]} 25. b5
{[%clk 0:01:25.2]} 25... Nb8 {[%clk 0:01:05.1]} 26. Ne5 {[%clk 0:01:10.8]} 26...
Be6 {[%clk 0:00:52.4]} 27. Bxe6 {[%clk 0:01:02.5]} 27... fxe6 {[%clk 0:00:54.3]}
28. Nc4 {[%clk 0:01:04]} 28... Kf7 {[%clk 0:00:53.4]} 29. h4 {[%clk 0:00:53.2]}
29... gxh4 {[%clk 0:00:41]} 30. Bxh4 {[%clk 0:00:47.8]} 30... Rd5 {[%clk
0:00:37.6]} 31. Bg3 {[%clk 0:00:35.9]} 31... Nd7 {[%clk 0:00:36.3]} 32. Re4
{[%clk 0:00:29.5]} 32... Rd3 {[%clk 0:00:34.7]} 33. Ne5+ {[%clk 0:00:24.4]}
33... Nxe5 {[%clk 0:00:33.2]} 34. Bxe5 {[%clk 0:00:26.3]} 34... Kg6 {[%clk
0:00:20.4]} 35. Rc4 {[%clk 0:00:20.9]} 35... Rd1+ {[%clk 0:00:17.2]} 36. Kh2
{[%clk 0:00:21.7]} 36... Bxf2 {[%clk 0:00:18.7]} 37. Rxc7 {[%clk 0:00:21.1]}
37... Rd5 {[%clk 0:00:13.7]} 38. Bd4 {[%clk 0:00:16.4]} 38... Rh5# {[%clk
0:00:13.8]} 0-1

[Event "*** Biggest EVER Titled Tuesday"]
[Site "Chess.com"]
[Date "2018.04.17"]
[Round "6"]
[White "nurmiTV"]
[Black "AnonymousBread"]
[Result "1-0"]
[WhiteElo "2459"]
[BlackElo "2396"]
[TimeControl "180+2"]
[EndTime "14:23:03 PDT"]
[Termination "nurmiTV won by resignation"]

1. c4 {[%clk 0:02:58.3]} 1... Nf6 {[%clk 0:03:00.7]} 2. Nc3 {[%clk 0:02:59.7]}
2... g6 {[%clk 0:03:02.2]} 3. g3 {[%clk 0:03:00.5]} 3... Bg7 {[%clk 0:03:03.6]}
4. Bg2 {[%clk 0:03:02.1]} 4... O-O {[%clk 0:03:05.2]} 5. e4 {[%clk 0:03:03.5]}
5... d6 {[%clk 0:03:03.8]} 6. Nge2 {[%clk 0:03:04.8]} 6... c5 {[%clk 0:02:57]}
7. O-O {[%clk 0:02:59.2]} 7... Nc6 {[%clk 0:02:57.7]} 8. h3 {[%clk 0:02:59.2]}
8... a6 {[%clk 0:02:53.1]} 9. d3 {[%clk 0:02:59.3]} 9... Rb8 {[%clk 0:02:53.5]}
10. a4 {[%clk 0:02:56.1]} 10... e6 {[%clk 0:02:45.9]} 11. Kh2 {[%clk 0:02:51.7]}
11... Qa5 {[%clk 0:02:34]} 12. Bd2 {[%clk 0:02:15.6]} 12... Qc7 {[%clk
0:02:03.2]} 13. Rb1 {[%clk 0:01:51.4]} 13... Rd8 {[%clk 0:01:49.8]} 14. Be3
{[%clk 0:01:49.5]} 14... Nb4 {[%clk 0:01:42]} 15. Rc1 {[%clk 0:01:43.2]} 15...
b6 {[%clk 0:01:29.6]} 16. d4 {[%clk 0:01:31.7]} 16... Nd7 {[%clk 0:01:20.9]} 17.
d5 {[%clk 0:01:12.3]} 17... Ne5 {[%clk 0:01:15.7]} 18. b3 {[%clk 0:01:07.3]}
18... exd5 {[%clk 0:01:15.7]} 19. Nxd5 {[%clk 0:00:49.2]} 19... Nxd5 {[%clk
0:01:13.5]} 20. cxd5 {[%clk 0:00:45.4]} 20... b5 {[%clk 0:01:12]} 21. f4 {[%clk
0:00:42.3]} 21... Nd7 {[%clk 0:01:11.5]} 22. axb5 {[%clk 0:00:36.3]} 22... axb5
{[%clk 0:01:11.2]} 23. Nd4 {[%clk 0:00:36.2]} 23... Re8 {[%clk 0:00:36.3]} 24.
Nc6 {[%clk 0:00:34.7]} 24... Ra8 {[%clk 0:00:37.3]} 25. e5 {[%clk 0:00:28.4]}
25... Bb7 {[%clk 0:00:34.7]} 26. exd6 {[%clk 0:00:17.5]} 26... Qxd6 {[%clk
0:00:36.6]} 27. Bg1 {[%clk 0:00:18.4]} 27... Ra2 {[%clk 0:00:34.1]} 28. Rc2
{[%clk 0:00:16.4]} 28... Ra1 {[%clk 0:00:27.5]} 29. Rc1 {[%clk 0:00:13.9]} 29...
Rxc1 {[%clk 0:00:20.7]} 30. Qxc1 {[%clk 0:00:14.5]} 30... Re2 {[%clk 0:00:22.4]}
31. Rf2 {[%clk 0:00:14.5]} 31... Re8 {[%clk 0:00:14]} 32. Qf1 {[%clk 0:00:14.4]}
32... Nb6 {[%clk 0:00:12.8]} 33. Qxb5 {[%clk 0:00:10.7]} 33... Qc7 {[%clk
0:00:04.1]} 34. Rc2 {[%clk 0:00:10.7]} 34... Bf8 {[%clk 0:00:05]} 35. Bxc5
{[%clk 0:00:11.2]} 35... Bxc5 {[%clk 0:00:05.4]} 36. Qxc5 {[%clk 0:00:13.1]}
36... Nd7 {[%clk 0:00:06.1]} 37. Ne7+ {[%clk 0:00:11.7]} 37... Rxe7 {[%clk
0:00:04.9]} 38. Qxc7 {[%clk 0:00:13.6]} 1-0

[Event "*** Biggest EVER Titled Tuesday"]
[Site "Chess.com"]
[Date "2018.04.17"]
[Round "6"]
[White "milovanratkovic"]
[Black "champ2005"]
[Result "0-1"]
[WhiteElo "2458"]
[BlackElo "2619"]
[TimeControl "180+2"]
[EndTime "14:23:11 PDT"]
[Termination "champ2005 won on time"]

1. d4 {[%clk 0:01:40.4]} 1... Nf6 {[%clk 0:03:00.3]} 2. Bg5 {[%clk 0:01:40.3]}
2... d5 {[%clk 0:03:00.6]} 3. e3 {[%clk 0:01:40.2]} 3... Bf5 {[%clk 0:02:50.8]}
4. Bd3 {[%clk 0:01:38.5]} 4... Bxd3 {[%clk 0:02:50.8]} 5. Qxd3 {[%clk
0:01:39.7]} 5... e6 {[%clk 0:02:51.8]} 6. Qb5+ {[%clk 0:01:32.7]} 6... Nbd7
{[%clk 0:02:51.4]} 7. Qxb7 {[%clk 0:01:31.7]} 7... Rb8 {[%clk 0:02:47.6]} 8. Qc6
{[%clk 0:01:32.2]} 8... Rxb2 {[%clk 0:02:44.3]} 9. Nf3 {[%clk 0:01:32.6]} 9...
Bb4+ {[%clk 0:02:34.4]} 10. c3 {[%clk 0:01:32.6]} 10... Bd6 {[%clk 0:02:31.8]}
11. Bxf6 {[%clk 0:01:28.7]} 11... gxf6 {[%clk 0:02:30.7]} 12. Nbd2 {[%clk
0:01:28.5]} 12... Rb6 {[%clk 0:02:14.4]} 13. Qa4 {[%clk 0:01:28.5]} 13... Qb8
{[%clk 0:02:14.9]} 14. O-O {[%clk 0:01:26.4]} 14... Ke7 {[%clk 0:02:12.8]} 15.
g3 {[%clk 0:01:25.2]} 15... Qb7 {[%clk 0:02:12.9]} 16. Rab1 {[%clk 0:01:15.3]}
16... Rb8 {[%clk 0:02:00.6]} 17. Rxb6 {[%clk 0:01:15.4]} 17... axb6 {[%clk
0:01:57.7]} 18. Qc2 {[%clk 0:01:16.4]} 18... f5 {[%clk 0:01:58.8]} 19. c4 {[%clk
0:00:52.3]} 19... dxc4 {[%clk 0:01:59.4]} 20. Qxc4 {[%clk 0:00:54]} 20... Ra8
{[%clk 0:01:58]} 21. Rc1 {[%clk 0:00:52.9]} 21... Nf6 {[%clk 0:01:58.8]} 22. Ne5
{[%clk 0:00:53]} 22... Qd5 {[%clk 0:01:53.2]} 23. Rc2 {[%clk 0:00:38.5]} 23...
b5 {[%clk 0:01:38.9]} 24. Qxd5 {[%clk 0:00:36.8]} 24... Nxd5 {[%clk 0:01:39.6]}
25. Nd3 {[%clk 0:00:33.9]} 25... b4 {[%clk 0:01:35.2]} 26. Nc4 {[%clk
0:00:27.9]} 26... Ra4 {[%clk 0:01:34.3]} 27. Kf1 {[%clk 0:00:23.3]} 27... f6
{[%clk 0:01:30.5]} 28. Kg2 {[%clk 0:00:22.8]} 28... Kd7 {[%clk 0:01:30.1]} 29.
h4 {[%clk 0:00:19.6]} 29... Ra6 {[%clk 0:01:23.9]} 30. Kf3 {[%clk 0:00:18.3]}
30... Rc6 {[%clk 0:01:20.6]} 31. Ndb2 {[%clk 0:00:04.2]} 31... Nc3 {[%clk
0:01:19.1]} 32. Rd2 {[%clk 0:00:05.3]} 32... Nxa2 {[%clk 0:01:19.3]} 33. Na5
{[%clk 0:00:05.9]} 33... Ra6 {[%clk 0:01:18.6]} 34. Nbc4 {[%clk 0:00:06.9]}
34... Nc3 {[%clk 0:01:19.7]} 35. Rb2 {[%clk 0:00:07.4]} 35... Nd5 {[%clk
0:01:19.4]} 36. Nxd6 {[%clk 0:00:07.5]} 36... cxd6 {[%clk 0:01:17.7]} 37. Nc4
{[%clk 0:00:07.9]} 37... Rc6 {[%clk 0:01:18]} 38. Nd2 {[%clk 0:00:07.6]} 38...
Rc1 {[%clk 0:01:17.1]} 39. e4 {[%clk 0:00:08.3]} 39... fxe4+ {[%clk 0:01:15.7]}
40. Nxe4 {[%clk 0:00:10]} 40... Ke7 {[%clk 0:01:13.8]} 41. h5 {[%clk 0:00:10.1]}
41... Rc4 {[%clk 0:01:13]} 42. Ra2 {[%clk 0:00:09.4]} 42... f5 {[%clk
0:01:03.5]} 43. Ng5 {[%clk 0:00:04.5]} 43... h6 {[%clk 0:01:03.6]} 44. Ra7+
{[%clk 0:00:04.7]} 44... Rc7 {[%clk 0:01:04.4]} 45. Rxc7+ {[%clk 0:00:04.9]}
45... Nxc7 {[%clk 0:01:05.5]} 0-1

[Event "*** Biggest EVER Titled Tuesday"]
[Site "Chess.com"]
[Date "2018.04.17"]
[Round "6"]
[White "Godzillator"]
[Black "nikitakhoroshev"]
[Result "0-1"]
[WhiteElo "2299"]
[BlackElo "2522"]
[TimeControl "180+2"]
[EndTime "14:23:14 PDT"]
[Termination "nikitakhoroshev won by resignation"]

1. d4 {[%clk 0:03:01.9]} 1... Nf6 {[%clk 0:02:59.7]} 2. c4 {[%clk 0:03:03.1]}
2... c5 {[%clk 0:03:00.9]} 3. d5 {[%clk 0:03:03.9]} 3... b5 {[%clk 0:03:02.4]}
4. cxb5 {[%clk 0:03:04.8]} 4... e6 {[%clk 0:03:03.9]} 5. dxe6 {[%clk 0:03:04]}
5... fxe6 {[%clk 0:03:04.6]} 6. Nc3 {[%clk 0:02:39.8]} 6... d5 {[%clk
0:03:05.5]} 7. e3 {[%clk 0:02:40.6]} 7... Bb7 {[%clk 0:03:03.9]} 8. Nf3 {[%clk
0:02:41.4]} 8... Bd6 {[%clk 0:03:04.6]} 9. Be2 {[%clk 0:02:40.1]} 9... O-O
{[%clk 0:03:03.7]} 10. h3 {[%clk 0:02:33.5]} 10... Qe7 {[%clk 0:02:58.6]} 11. a4
{[%clk 0:02:32.1]} 11... e5 {[%clk 0:02:54.6]} 12. O-O {[%clk 0:02:21.3]} 12...
Nbd7 {[%clk 0:02:49.3]} 13. a5 {[%clk 0:02:13.7]} 13... e4 {[%clk 0:02:38.6]}
14. Ne1 {[%clk 0:01:52.2]} 14... Rae8 {[%clk 0:02:14.3]} 15. Ra4 {[%clk
0:01:12.9]} 15... Ba8 {[%clk 0:02:01.6]} 16. b6 {[%clk 0:01:03.4]} 16... axb6
{[%clk 0:01:59.5]} 17. Nb5 {[%clk 0:01:04.5]} 17... Be5 {[%clk 0:01:55.1]} 18.
axb6 {[%clk 0:00:58.5]} 18... Nxb6 {[%clk 0:01:52.2]} 19. Ra7 {[%clk 0:00:58.8]}
19... Qe6 {[%clk 0:01:47.3]} 20. Nc7 {[%clk 0:00:58.6]} 20... Bxc7 {[%clk
0:01:44.7]} 21. Rxc7 {[%clk 0:00:59.3]} 21... Nbd7 {[%clk 0:01:43.3]} 22. b4
{[%clk 0:00:54]} 22... Qb6 {[%clk 0:01:41.5]} 23. Rxc5 {[%clk 0:00:44.3]} 23...
Nxc5 {[%clk 0:01:42.7]} 24. bxc5 {[%clk 0:00:45.4]} 24... Qxc5 {[%clk
0:01:44.6]} 25. Nc2 {[%clk 0:00:43.8]} 25... Rf7 {[%clk 0:01:43]} 26. Nd4 {[%clk
0:00:44]} 26... Bb7 {[%clk 0:01:38.6]} 27. Bb2 {[%clk 0:00:44.6]} 27... Qb6
{[%clk 0:01:35.3]} 28. Qb1 {[%clk 0:00:37.6]} 28... Ba6 {[%clk 0:01:34.2]} 29.
Bxa6 {[%clk 0:00:36.8]} 29... Qxa6 {[%clk 0:01:36.1]} 30. Nf5 {[%clk 0:00:33.2]}
30... Rb8 {[%clk 0:01:32.2]} 31. Qc1 {[%clk 0:00:26.6]} 31... Qe6 {[%clk
0:01:29.9]} 32. Nd4 {[%clk 0:00:21.8]} 32... Qb6 {[%clk 0:01:28.2]} 33. Bc3
{[%clk 0:00:19.9]} 33... Ra8 {[%clk 0:01:25.7]} 34. Qd2 {[%clk 0:00:19.5]} 34...
Rc8 {[%clk 0:01:21.8]} 35. Rd1 {[%clk 0:00:19.7]} 35... Qb7 {[%clk 0:01:20.5]}
36. Ba1 {[%clk 0:00:19.7]} 36... Rfc7 {[%clk 0:01:18.7]} 37. Nf5 {[%clk
0:00:20.7]} 37... Rc2 {[%clk 0:01:16.5]} 38. Qd4 {[%clk 0:00:21.8]} 38... Rc1
{[%clk 0:00:52]} 39. Nd6 {[%clk 0:00:21.4]} 39... Qb3 {[%clk 0:00:42.2]} 40.
Rxc1 {[%clk 0:00:12.3]} 40... Rxc1+ {[%clk 0:00:44.1]} 41. Kh2 {[%clk
0:00:13.4]} 41... Qb8 {[%clk 0:00:32.6]} 42. Qe5 {[%clk 0:00:05.1]} 42... Rxa1
{[%clk 0:00:33.9]} 0-1

[Event "*** Biggest EVER Titled Tuesday"]
[Site "Chess.com"]
[Date "2018.04.17"]
[Round "6"]
[White "Andreikka"]
[Black "Marcus_Harvey"]
[Result "1-0"]
[WhiteElo "2797"]
[BlackElo "2626"]
[TimeControl "180+2"]
[EndTime "14:23:14 PDT"]
[Termination "Andreikka won by checkmate"]

1. d4 {[%clk 0:03:00.9]} 1... e6 {[%clk 0:03:00.1]} 2. Nf3 {[%clk 0:03:02.3]}
2... f5 {[%clk 0:03:01.2]} 3. Bf4 {[%clk 0:03:02.3]} 3... Nf6 {[%clk 0:03:02.3]}
4. h3 {[%clk 0:03:00.4]} 4... c5 {[%clk 0:03:03.1]} 5. e3 {[%clk 0:02:52.1]}
5... Nc6 {[%clk 0:02:58.9]} 6. Nbd2 {[%clk 0:02:49]} 6... a6 {[%clk 0:02:28.6]}
7. c3 {[%clk 0:02:15]} 7... b5 {[%clk 0:02:25.8]} 8. g4 {[%clk 0:02:00.8]} 8...
Nd5 {[%clk 0:02:23.5]} 9. Bh2 {[%clk 0:01:58.2]} 9... g6 {[%clk 0:02:16.3]} 10.
gxf5 {[%clk 0:01:55.5]} 10... exf5 {[%clk 0:02:13.2]} 11. dxc5 {[%clk
0:01:51.2]} 11... Bb7 {[%clk 0:01:51.2]} 12. Be2 {[%clk 0:01:26.2]} 12... Qf6
{[%clk 0:01:10.9]} 13. Nb3 {[%clk 0:01:21.6]} 13... Qf7 {[%clk 0:01:03.8]} 14.
Ne5 {[%clk 0:00:58.6]} 14... Nxe5 {[%clk 0:01:02.8]} 15. Bxe5 {[%clk 0:00:59.1]}
15... Rg8 {[%clk 0:00:58.5]} 16. Bf3 {[%clk 0:00:51.7]} 16... O-O-O {[%clk
0:00:58.9]} 17. Qd2 {[%clk 0:00:37.6]} 17... Re8 {[%clk 0:00:53.3]} 18. Na5
{[%clk 0:00:31.5]} 18... Rxe5 {[%clk 0:00:39.8]} 19. Nxb7 {[%clk 0:00:32.4]}
19... f4 {[%clk 0:00:41.3]} 20. O-O {[%clk 0:00:15.6]} 20... fxe3 {[%clk
0:00:25.6]} 21. fxe3 {[%clk 0:00:16.6]} 21... Qe6 {[%clk 0:00:27.1]} 22. Rad1
{[%clk 0:00:14.1]} 22... Nxe3 {[%clk 0:00:24]} 23. Rf2 {[%clk 0:00:07.4]} 23...
Nxd1 {[%clk 0:00:20]} 24. Bxd1 {[%clk 0:00:04.6]} 24... Bxc5 {[%clk 0:00:20.4]}
25. Nxc5 {[%clk 0:00:04.8]} 25... Rxc5 {[%clk 0:00:22.3]} 26. Bb3 {[%clk
0:00:06]} 26... Rc4 {[%clk 0:00:14.4]} 27. Bxc4 {[%clk 0:00:06.9]} 27... bxc4
{[%clk 0:00:15.8]} 28. Qd4 {[%clk 0:00:07.9]} 28... Re8 {[%clk 0:00:16.3]} 29.
Kg2 {[%clk 0:00:08.9]} 29... Qc6+ {[%clk 0:00:16.8]} 30. Kh2 {[%clk 0:00:10.4]}
30... Re1 {[%clk 0:00:13.7]} 31. Kg3 {[%clk 0:00:07.2]} 31... Rg1+ {[%clk
0:00:12]} 32. Kf4 {[%clk 0:00:08.4]} 32... Qc7+ {[%clk 0:00:10.5]} 33. Ke3
{[%clk 0:00:06.2]} 33... Qg3+ {[%clk 0:00:09.6]} 34. Ke2 {[%clk 0:00:05.7]}
34... Qd3+ {[%clk 0:00:09.4]} 35. Qxd3 {[%clk 0:00:06.7]} 35... cxd3+ {[%clk
0:00:11.3]} 36. Kxd3 {[%clk 0:00:08.6]} 36... Rg3+ {[%clk 0:00:12.9]} 37. Kd4
{[%clk 0:00:09.5]} 37... Rxh3 {[%clk 0:00:14.8]} 38. a4 {[%clk 0:00:10.3]} 38...
Rh4+ {[%clk 0:00:15.8]} 39. Kc5 {[%clk 0:00:11.2]} 39... Rxa4 {[%clk 0:00:17.7]}
40. Kb6 {[%clk 0:00:12.4]} 40... Rc4 {[%clk 0:00:17.1]} 41. Rf8# {[%clk
0:00:12.8]} 1-0